[Event "Titled Tuesday Blitz April 26 Late 2022"]
[White "Burke, Paul"]
[Black "Leiva, Gianmarco"]
[WhiteFideId "2605767"]
[BlackFideId "3804399"]
[WhiteElo "1871"]
[BlackElo "2323"]
[Result "0-1"]
[Round "02"]
[TimeControl "180+1"]
[Date "2022.04.26"]
[WhiteClock "0:00:36"]
[BlackClock "0:00:42"]

1. e4 {[%clk 0:03:00]}  g6 {[%clk 0:03:00]} 2. Nc3 {[%clk 0:02:57]}  Bg7 {[%clk 0:03:00]} 3. g3 {[%clk 0:02:57]}  c5 {[%clk 0:02:59]} 4. Bg2 {[%clk 0:02:55]}  Nc6 {[%clk 0:03:00]} 5. Nge2 {[%clk 0:02:55]}  d6 {[%clk 0:03:00]} 6. O-O {[%clk 0:02:55]}  Rb8 {[%clk 0:03:00]} 7. h3 {[%clk 0:02:52]}  b5 {[%clk 0:03:00]} 8. d3 {[%clk 0:02:50]}  Nf6 {[%clk 0:02:57]} 9. f4 {[%clk 0:02:49]}  b4 {[%clk 0:02:57]} 10. e5 {[%clk 0:02:49]}  bxc3 {[%clk 0:02:50]} 11. Bxc6+ {[%clk 0:02:44]}  Bd7 {[%clk 0:02:50]} 12. exf6 {[%clk 0:02:40]}  Bxf6 {[%clk 0:02:49]} 13. Bxd7+ {[%clk 0:02:39]}  Qxd7 {[%clk 0:02:50]} 14. bxc3 {[%clk 0:02:38]}  Qxh3 {[%clk 0:02:50]} 15. Kf2 {[%clk 0:02:27]}  Qh2+ {[%clk 0:02:48]} 16. Kf3 {[%clk 0:02:23]}  Qh5+ {[%clk 0:02:48]} 17. Kf2 {[%clk 0:02:22]}  d5 {[%clk 0:02:28]} 18. Rh1 {[%clk 0:02:19]}  Qf5 {[%clk 0:02:27]} 19. Bd2 {[%clk 0:02:10]}  h5 {[%clk 0:02:22]} 20. Ng1 {[%clk 0:02:03]}  h4 {[%clk 0:02:22]} 21. Qf3 {[%clk 0:01:56]}  Rb2 {[%clk 0:02:13]} 22. g4 {[%clk 0:01:47]}  Qd7 {[%clk 0:02:13]} 23. Rc1 {[%clk 0:01:38]}  e6 {[%clk 0:01:13]} 24. Ne2 {[%clk 0:01:37]}  Qa4 {[%clk 0:01:08]} 25. f5 {[%clk 0:01:26]}  gxf5 {[%clk 0:01:05]} 26. gxf5 {[%clk 0:01:25]}  Be5 {[%clk 0:00:52]} 27. d4 {[%clk 0:00:54]}  Rxc2 {[%clk 0:00:40]} 28. Rxc2 {[%clk 0:00:50]}  Qxc2 {[%clk 0:00:41]} 29. dxe5 {[%clk 0:00:48]}  Qxd2 {[%clk 0:00:42]} 30. fxe6 {[%clk 0:00:43]}  fxe6 {[%clk 0:00:42]} 31. Rg1 {[%clk 0:00:40]}  Rf8 {[%clk 0:00:41]} 32. Qxf8+ {[%clk 0:00:36]}  Kxf8 {[%clk 0:00:42]} 0-1


[Site "https://www.chess.com"]

[Event "Titled Tuesday Blitz April 26 Late 2022"]
[White "Carrasco Miranda, Andres"]
[Black "Moral Garcia, Serafin"]
[WhiteFideId "3405990"]
[BlackFideId "2201925"]
[WhiteElo "2177"]
[BlackElo "2228"]
[Result "0-1"]
[Round "02"]
[TimeControl "180+1"]
[Date "2022.04.26"]
[WhiteClock "0:00:17"]
[BlackClock "0:00:06"]

1. d4 {[%clk 0:03:00]}  Nf6 {[%clk 0:02:48]} 2. c4 {[%clk 0:02:43]}  c5 {[%clk 0:02:48]} 3. d5 {[%clk 0:02:40]}  e6 {[%clk 0:02:48]} 4. Nc3 {[%clk 0:02:38]}  exd5 {[%clk 0:02:47]} 5. cxd5 {[%clk 0:02:39]}  d6 {[%clk 0:02:48]} 6. h3 {[%clk 0:02:28]}  g6 {[%clk 0:02:45]} 7. e4 {[%clk 0:02:28]}  Bg7 {[%clk 0:02:45]} 8. Bd3 {[%clk 0:02:28]}  a6 {[%clk 0:02:42]} 9. a4 {[%clk 0:02:28]}  O-O {[%clk 0:02:41]} 10. Bg5 {[%clk 0:02:28]}  h6 {[%clk 0:02:39]} 11. Be3 {[%clk 0:02:28]}  Nbd7 {[%clk 0:02:32]} 12. Nf3 {[%clk 0:02:27]}  Re8 {[%clk 0:02:28]} 13. O-O {[%clk 0:02:27]}  Ne5 {[%clk 0:02:19]} 14. Nxe5 {[%clk 0:02:26]}  Rxe5 {[%clk 0:02:19]} 15. Bf4 {[%clk 0:02:25]}  Re7 {[%clk 0:02:16]} 16. Qd2 {[%clk 0:02:25]}  Kh7 {[%clk 0:02:16]} 17. Rae1 {[%clk 0:02:25]}  Ne8 {[%clk 0:02:16]} 18. Bh2 {[%clk 0:02:20]}  Rb8 {[%clk 0:02:10]} 19. f4 {[%clk 0:02:14]}  Qc7 {[%clk 0:02:03]} 20. e5 {[%clk 0:01:58]}  c4 {[%clk 0:02:02]} 21. Bc2 {[%clk 0:01:51]}  b5 {[%clk 0:01:52]} 22. axb5 {[%clk 0:01:52]}  axb5 {[%clk 0:01:52]} 23. Ne4 {[%clk 0:01:43]}  Bf5 {[%clk 0:01:45]} 24. exd6 {[%clk 0:01:24]}  Nxd6 {[%clk 0:01:39]} 25. Nxd6 {[%clk 0:01:24]}  Bxc2 {[%clk 0:01:19]} 26. Qxc2 {[%clk 0:01:22]}  Qxd6 {[%clk 0:01:14]} 27. f5 {[%clk 0:01:10]}  Qc5+ {[%clk 0:01:14]} 28. Kh1 {[%clk 0:01:11]}  Rbe8 {[%clk 0:01:07]} 29. Rxe7 {[%clk 0:01:08]}  Rxe7 {[%clk 0:01:06]} 30. d6 {[%clk 0:00:57]}  Rd7 {[%clk 0:00:58]} 31. f6 {[%clk 0:00:37]}  Bf8 {[%clk 0:00:58]} 32. Qe2 {[%clk 0:00:33]}  Bxd6 {[%clk 0:00:45]} 33. Qe8 {[%clk 0:00:33]}  Qc7 {[%clk 0:00:40]} 34. Rd1 {[%clk 0:00:30]}  Rd8 {[%clk 0:00:19]} 35. Qxb5 {[%clk 0:00:19]}  Bxh2 {[%clk 0:00:19]} 36. Rxd8 {[%clk 0:00:17]}  Qxd8 {[%clk 0:00:19]} 37. Kxh2 {[%clk 0:00:17]}  Qd6+ {[%clk 0:00:19]} 38. Kg1 {[%clk 0:00:16]}  Qxf6 {[%clk 0:00:17]} 39. Qxc4 {[%clk 0:00:16]}  Kg7 {[%clk 0:00:17]} 40. b4 {[%clk 0:00:16]}  Qb6+ {[%clk 0:00:17]} 41. Kh2 {[%clk 0:00:15]}  Kf8 {[%clk 0:00:17]} 42. Qc8+ {[%clk 0:00:13]}  Ke7 {[%clk 0:00:17]} 43. Qc4 {[%clk 0:00:12]}  h5 {[%clk 0:00:17]} 44. Kg3 {[%clk 0:00:12]}  Qd6+ {[%clk 0:00:17]} 45. Kf3 {[%clk 0:00:12]}  Qf6+ {[%clk 0:00:16]} 46. Ke3 {[%clk 0:00:11]}  Qg5+ {[%clk 0:00:16]} 47. Qf4 {[%clk 0:00:10]}  Qxg2 {[%clk 0:00:15]} 48. Qe4+ {[%clk 0:00:10]}  Qxe4+ {[%clk 0:00:15]} 49. Kxe4 {[%clk 0:00:10]}  Kd6 {[%clk 0:00:14]} 50. Kd4 {[%clk 0:00:10]}  f6 {[%clk 0:00:14]} 51. b5 {[%clk 0:00:08]}  Kc7 {[%clk 0:00:13]} 52. Kd5 {[%clk 0:00:06]}  g5 {[%clk 0:00:14]} 53. Ke6 {[%clk 0:00:06]}  g4 {[%clk 0:00:10]} 54. h4 {[%clk 0:00:06]}  g3 {[%clk 0:00:01]} 55. Kxf6 {[%clk 0:00:07]}  g2 {[%clk 0:00:02]} 56. Kg5 {[%clk 0:00:08]}  g1=Q+ {[%clk 0:00:02]} 57. Kxh5 {[%clk 0:00:09]}  Qg3 {[%clk 0:00:02]} 58. Kh6 {[%clk 0:00:09]}  Qxh4+ {[%clk 0:00:01]} 59. Kg6 {[%clk 0:00:10]}  Kb6 {[%clk 0:00:02]} 60. Kf7 {[%clk 0:00:11]}  Kxb5 {[%clk 0:00:02]} 61. Ke6 {[%clk 0:00:11]}  Kc5 {[%clk 0:00:03]} 62. Kd7 {[%clk 0:00:12]}  Qh6 {[%clk 0:00:03]} 63. Kc7 {[%clk 0:00:13]}  Qe6 {[%clk 0:00:04]} 64. Kb7 {[%clk 0:00:14]}  Kb5 {[%clk 0:00:04]} 65. Ka7 {[%clk 0:00:15]}  Qc6 {[%clk 0:00:05]} 66. Kb8 {[%clk 0:00:16]}  Qd7 {[%clk 0:00:05]} 67. Ka8 {[%clk 0:00:16]}  Kb6 {[%clk 0:00:06]} 68. Kb8 {[%clk 0:00:17]}  Qd8# {[%clk 0:00:06]} 0-1


[Site "https://www.chess.com"]

[Event "Titled Tuesday Blitz April 26 Late 2022"]
[White "Caruana, Fabiano"]
[Black "Siddharth, Jagadeesh"]
[WhiteFideId "2020009"]
[BlackFideId "5818320"]
[WhiteElo "2744"]
[BlackElo "2127"]
[Result "1-0"]
[Round "02"]
[TimeControl "180+1"]
[Date "2022.04.26"]
[WhiteClock "0:00:11"]
[BlackClock "0:00:02"]

1. d4 {[%clk 0:02:58]}  d5 {[%clk 0:02:59]} 2. Nf3 {[%clk 0:02:58]}  Nf6 {[%clk 0:02:59]} 3. Bg5 {[%clk 0:02:58]}  c6 {[%clk 0:02:58]} 4. Nbd2 {[%clk 0:02:57]}  Bf5 {[%clk 0:02:55]} 5. e3 {[%clk 0:02:57]}  Nbd7 {[%clk 0:02:55]} 6. Bd3 {[%clk 0:02:57]}  e6 {[%clk 0:02:52]} 7. Bxf5 {[%clk 0:02:55]}  exf5 {[%clk 0:02:53]} 8. O-O {[%clk 0:02:55]}  Be7 {[%clk 0:02:53]} 9. c4 {[%clk 0:02:55]}  O-O {[%clk 0:02:53]} 10. Qc2 {[%clk 0:02:54]}  Ne4 {[%clk 0:02:52]} 11. Bxe7 {[%clk 0:02:50]}  Qxe7 {[%clk 0:02:53]} 12. Rab1 {[%clk 0:02:47]}  Ndf6 {[%clk 0:02:48]} 13. b4 {[%clk 0:02:45]}  dxc4 {[%clk 0:02:45]} 14. Nxc4 {[%clk 0:02:44]}  a6 {[%clk 0:02:43]} 15. Nfd2 {[%clk 0:02:41]}  Nxd2 {[%clk 0:02:31]} 16. Nxd2 {[%clk 0:02:36]}  g6 {[%clk 0:02:32]} 17. a4 {[%clk 0:02:34]}  Nd5 {[%clk 0:02:31]} 18. Qc5 {[%clk 0:02:34]}  Rfe8 {[%clk 0:02:27]} 19. Qxe7 {[%clk 0:02:32]}  Rxe7 {[%clk 0:02:27]} 20. g3 {[%clk 0:02:33]}  b5 {[%clk 0:02:26]} 21. a5 {[%clk 0:02:28]}  Re6 {[%clk 0:02:21]} 22. Rfc1 {[%clk 0:02:28]}  Rd6 {[%clk 0:02:05]} 23. Rc5 {[%clk 0:02:26]}  Re8 {[%clk 0:02:03]} 24. Nf3 {[%clk 0:02:16]}  f6 {[%clk 0:02:01]} 25. Ne1 {[%clk 0:02:16]}  Kf7 {[%clk 0:01:40]} 26. Nd3 {[%clk 0:02:14]}  Ra8 {[%clk 0:01:30]} 27. Nf4 {[%clk 0:01:59]}  Nxf4 {[%clk 0:01:22]} 28. gxf4 {[%clk 0:02:00]}  Ke6 {[%clk 0:01:23]} 29. Rbc1 {[%clk 0:01:57]}  Kd7 {[%clk 0:01:23]} 30. d5 {[%clk 0:01:52]}  Rc8 {[%clk 0:01:19]} 31. Rd1 {[%clk 0:01:46]}  cxd5 {[%clk 0:01:16]} 32. Rcxd5 {[%clk 0:01:47]}  Rxd5 {[%clk 0:01:16]} 33. Rxd5+ {[%clk 0:01:48]}  Ke6 {[%clk 0:01:16]} 34. Rd4 {[%clk 0:01:48]}  Rc4 {[%clk 0:01:05]} 35. Rd8 {[%clk 0:01:12]}  Rxb4 {[%clk 0:00:46]} 36. Ra8 {[%clk 0:01:11]}  Ra4 {[%clk 0:00:46]} 37. Rxa6+ {[%clk 0:01:11]}  Kd5 {[%clk 0:00:47]} 38. Ra8 {[%clk 0:01:08]}  b4 {[%clk 0:00:46]} 39. Kg2 {[%clk 0:01:01]}  Kc4 {[%clk 0:00:26]} 40. f3 {[%clk 0:00:57]}  Kb5 {[%clk 0:00:22]} 41. Rb8+ {[%clk 0:00:51]}  Kxa5 {[%clk 0:00:22]} 42. e4 {[%clk 0:00:52]}  fxe4 {[%clk 0:00:14]} 43. fxe4 {[%clk 0:00:52]}  Ra2+ {[%clk 0:00:14]} 44. Kf3 {[%clk 0:00:50]}  Ra3+ {[%clk 0:00:11]} 45. Kf2 {[%clk 0:00:50]}  Ka4 {[%clk 0:00:08]} 46. e5 {[%clk 0:00:48]}  fxe5 {[%clk 0:00:08]} 47. fxe5 {[%clk 0:00:48]}  Kb3 {[%clk 0:00:09]} 48. Ke3 {[%clk 0:00:41]}  Kc2+ {[%clk 0:00:09]} 49. Kf4 {[%clk 0:00:36]}  b3 {[%clk 0:00:09]} 50. Rc8+ {[%clk 0:00:32]}  Kd3 {[%clk 0:00:09]} 51. Rb8 {[%clk 0:00:31]}  Kc2 {[%clk 0:00:08]} 52. Rc8+ {[%clk 0:00:31]}  Kd3 {[%clk 0:00:05]} 53. e6 {[%clk 0:00:25]}  b2 {[%clk 0:00:04]} 54. Rb8 {[%clk 0:00:23]}  Kc2 {[%clk 0:00:04]} 55. e7 {[%clk 0:00:22]}  Rb3 {[%clk 0:00:03]} 56. Rc8+ {[%clk 0:00:13]}  Kd2 {[%clk 0:00:01]} 57. e8=Q {[%clk 0:00:13]}  b1=Q {[%clk 0:00:02]} 58. Rd8+ {[%clk 0:00:13]}  Rd3 {[%clk 0:00:02]} 59. Qe3+ {[%clk 0:00:13]}  Kc3 {[%clk 0:00:02]} 60. Rc8+ {[%clk 0:00:13]}  Kb2 {[%clk 0:00:02]} 61. Rb8+ {[%clk 0:00:11]}  Ka2 {[%clk 0:00:02]} 62. Qa7+ {[%clk 0:00:10]}  Ra3 {[%clk 0:00:01]} 63. Qxa3+ {[%clk 0:00:10]}  Kxa3 {[%clk 0:00:02]} 64. Rxb1 {[%clk 0:00:11]} 1-0


[Site "https://www.chess.com"]

[Event "Titled Tuesday Blitz April 26 Late 2022"]
[White "Castellanos Hernandez, Emilio Au"]
[Black "Karas, Marek"]
[WhiteFideId "5114179"]
[BlackFideId "14928558"]
[WhiteElo "2021"]
[BlackElo "2271"]
[Result "1/2-1/2"]
[Round "02"]
[TimeControl "180+1"]
[Date "2022.04.26"]
[WhiteClock "0:00:48"]
[BlackClock "0:00:12"]

1. d4 {[%clk 0:03:00]}  Nf6 {[%clk 0:02:58]} 2. Bf4 {[%clk 0:03:00]}  d5 {[%clk 0:02:53]} 3. e3 {[%clk 0:02:59]}  c5 {[%clk 0:02:51]} 4. Nf3 {[%clk 0:02:59]}  Nc6 {[%clk 0:02:50]} 5. Nc3 {[%clk 0:02:55]}  a6 {[%clk 0:02:48]} 6. Be2 {[%clk 0:02:54]}  Bg4 {[%clk 0:02:43]} 7. h3 {[%clk 0:02:50]}  Bxf3 {[%clk 0:02:43]} 8. Bxf3 {[%clk 0:02:51]}  e6 {[%clk 0:02:44]} 9. O-O {[%clk 0:02:48]}  Bd6 {[%clk 0:02:41]} 10. dxc5 {[%clk 0:02:46]}  Bxc5 {[%clk 0:02:41]} 11. Bg5 {[%clk 0:02:45]}  h6 {[%clk 0:02:41]} 12. Bxf6 {[%clk 0:02:45]}  Qxf6 {[%clk 0:02:41]} 13. a3 {[%clk 0:02:44]}  O-O {[%clk 0:02:41]} 14. Re1 {[%clk 0:02:42]}  Rad8 {[%clk 0:02:41]} 15. Rb1 {[%clk 0:02:40]}  Bd6 {[%clk 0:02:39]} 16. Qe2 {[%clk 0:02:38]}  Qe5 {[%clk 0:02:38]} 17. g3 {[%clk 0:02:38]}  d4 {[%clk 0:02:33]} 18. Nd1 {[%clk 0:02:32]}  dxe3 {[%clk 0:02:30]} 19. Qxe3 {[%clk 0:02:33]}  Qf5 {[%clk 0:02:23]} 20. Bg2 {[%clk 0:02:32]}  Bc5 {[%clk 0:02:20]} 21. Qf3 {[%clk 0:02:31]}  Qxc2 {[%clk 0:02:11]} 22. Ne3 {[%clk 0:02:26]}  Qb3 {[%clk 0:02:06]} 23. Ng4 {[%clk 0:02:21]}  Rd3 {[%clk 0:02:00]} 24. Qe4 {[%clk 0:02:16]}  Rxg3 {[%clk 0:01:54]} 25. Kh1 {[%clk 0:02:02]}  Rd3 {[%clk 0:01:50]} 26. Rbc1 {[%clk 0:02:00]}  f5 {[%clk 0:01:45]} 27. Qxe6+ {[%clk 0:01:53]}  Qxe6 {[%clk 0:01:45]} 28. Rxe6 {[%clk 0:01:54]}  fxg4 {[%clk 0:01:43]} 29. Rxc5 {[%clk 0:01:52]}  gxh3 {[%clk 0:01:39]} 30. Be4 {[%clk 0:01:51]}  Rd2 {[%clk 0:01:35]} 31. f3 {[%clk 0:01:50]}  Rxb2 {[%clk 0:01:34]} 32. Rd6 {[%clk 0:01:45]}  Rb5 {[%clk 0:01:13]} 33. Rc3 {[%clk 0:01:39]}  Rg5 {[%clk 0:00:44]} 34. Kh2 {[%clk 0:01:39]}  Ne5 {[%clk 0:00:29]} 35. Kxh3 {[%clk 0:01:38]}  b5 {[%clk 0:00:29]} 36. Rxa6 {[%clk 0:01:32]}  Nc4 {[%clk 0:00:21]} 37. Ra7 {[%clk 0:01:26]}  Nd2 {[%clk 0:00:18]} 38. Rd3 {[%clk 0:01:20]}  Nxe4 {[%clk 0:00:17]} 39. fxe4 {[%clk 0:01:21]}  Re8 {[%clk 0:00:15]} 40. Rd4 {[%clk 0:01:18]}  Re6 {[%clk 0:00:10]} 41. Rb7 {[%clk 0:01:12]}  Rc6 {[%clk 0:00:10]} 42. Rd3 {[%clk 0:01:10]}  Re5 {[%clk 0:00:10]} 43. Re3 {[%clk 0:00:56]}  Rce6 {[%clk 0:00:10]} 44. Kg3 {[%clk 0:00:56]}  Rxe4 {[%clk 0:00:09]} 45. Rxe4 {[%clk 0:00:55]}  Rxe4 {[%clk 0:00:10]} 46. Rxb5 {[%clk 0:00:56]}  Re3+ {[%clk 0:00:11]} 47. Kf4 {[%clk 0:00:56]}  Rxa3 {[%clk 0:00:12]} 48. Kf5 {[%clk 0:00:56]}  Kh7 {[%clk 0:00:12]} 49. Rb7 {[%clk 0:00:56]}  Ra6 {[%clk 0:00:12]} 50. Rc7 {[%clk 0:00:56]}  Rf6+ {[%clk 0:00:12]} 51. Kg4 {[%clk 0:00:56]}  Kg6 {[%clk 0:00:12]} 52. Rb7 {[%clk 0:00:56]}  Ra6 {[%clk 0:00:12]} 53. Rb4 {[%clk 0:00:56]}  h5+ {[%clk 0:00:12]} 54. Kh4 {[%clk 0:00:56]}  Kh6 {[%clk 0:00:13]} 55. Rc4 {[%clk 0:00:56]}  g5+ {[%clk 0:00:12]} 56. Kg3 {[%clk 0:00:56]}  Kg6 {[%clk 0:00:13]} 57. Rc8 {[%clk 0:00:56]}  Ra3+ {[%clk 0:00:12]} 58. Kg2 {[%clk 0:00:57]}  Kf5 {[%clk 0:00:12]} 59. Rc5+ {[%clk 0:00:57]}  Kf4 {[%clk 0:00:10]} 60. Rc4+ {[%clk 0:00:57]}  Ke5 {[%clk 0:00:05]} 61. Rc5+ {[%clk 0:00:58]}  Kf6 {[%clk 0:00:06]} 62. Rc6+ {[%clk 0:00:58]}  Kf5 {[%clk 0:00:04]} 63. Rc5+ {[%clk 0:00:58]}  Kf4 {[%clk 0:00:05]} 64. Rc4+ {[%clk 0:00:59]}  Ke3 {[%clk 0:00:05]} 65. Rc5 {[%clk 0:00:58]}  Ra2+ {[%clk 0:00:04]} 66. Kg3 {[%clk 0:00:55]}  Ra1 {[%clk 0:00:04]} 67. Re5+ {[%clk 0:00:53]}  Kd4 {[%clk 0:00:04]} 68. Rxg5 {[%clk 0:00:53]}  Rg1+ {[%clk 0:00:03]} 69. Kh4 {[%clk 0:00:54]}  Rh1+ {[%clk 0:00:03]} 70. Kg3 {[%clk 0:00:54]}  h4+ {[%clk 0:00:04]} 71. Kf3 {[%clk 0:00:54]}  Rf1+ {[%clk 0:00:03]} 72. Kg2 {[%clk 0:00:54]}  Rf4 {[%clk 0:00:03]} 73. Kh3 {[%clk 0:00:54]}  Ke4 {[%clk 0:00:03]} 74. Rg8 {[%clk 0:00:55]}  Kf3 {[%clk 0:00:03]} 75. Ra8 {[%clk 0:00:54]}  Rf7 {[%clk 0:00:03]} 76. Ra1 {[%clk 0:00:54]}  Rg7 {[%clk 0:00:03]} 77. Rf1+ {[%clk 0:00:54]}  Ke4 {[%clk 0:00:03]} 78. Kxh4 {[%clk 0:00:53]}  Ke3 {[%clk 0:00:04]} 79. Re1+ {[%clk 0:00:53]}  Kf2 {[%clk 0:00:04]} 80. Re6 {[%clk 0:00:52]}  Kf3 {[%clk 0:00:04]} 81. Rf6+ {[%clk 0:00:53]}  Ke4 {[%clk 0:00:05]} 82. Rf8 {[%clk 0:00:51]}  Ke5 {[%clk 0:00:05]} 83. Kh5 {[%clk 0:00:51]}  Re7 {[%clk 0:00:05]} 84. Kg6 {[%clk 0:00:51]}  Re6+ {[%clk 0:00:05]} 85. Kg5 {[%clk 0:00:51]}  Rd6 {[%clk 0:00:06]} 86. Rf1 {[%clk 0:00:51]}  Kd5 {[%clk 0:00:07]} 87. Kf5 {[%clk 0:00:50]}  Ra6 {[%clk 0:00:07]} 88. Rd1+ {[%clk 0:00:50]}  Kc4 {[%clk 0:00:07]} 89. Ke5 {[%clk 0:00:50]}  Ra5+ {[%clk 0:00:07]} 90. Ke4 {[%clk 0:00:50]}  Ra8 {[%clk 0:00:07]} 91. Rc1+ {[%clk 0:00:50]}  Kb5 {[%clk 0:00:08]} 92. Rc7 {[%clk 0:00:50]}  Re8+ {[%clk 0:00:08]} 93. Kd3 {[%clk 0:00:50]}  Rd8+ {[%clk 0:00:08]} 94. Ke4 {[%clk 0:00:51]}  Rd6 {[%clk 0:00:08]} 95. Ke5 {[%clk 0:00:51]}  Rc6 {[%clk 0:00:09]} 96. Rb7+ {[%clk 0:00:51]}  Kc5 {[%clk 0:00:09]} 97. Rb1 {[%clk 0:00:51]}  Rb6 {[%clk 0:00:10]} 98. Rc1+ {[%clk 0:00:51]}  Kb5 {[%clk 0:00:10]} 99. Kd5 {[%clk 0:00:51]}  Ka6 {[%clk 0:00:11]} 100. Kc5 {[%clk 0:00:49]}  Rb5+ {[%clk 0:00:10]} 101. Kc6 {[%clk 0:00:49]}  Rb6+ {[%clk 0:00:11]} 102. Kc7 {[%clk 0:00:50]}  Rb7+ {[%clk 0:00:11]} 103. Kc8 {[%clk 0:00:50]}  Rb2 {[%clk 0:00:11]} 104. Kc7 {[%clk 0:00:49]}  Kb5 {[%clk 0:00:11]} 105. Rc6 {[%clk 0:00:48]}  Rh2 {[%clk 0:00:10]} 106. Rc1 {[%clk 0:00:48]}  Rh7+ {[%clk 0:00:09]} 107. Kd6 {[%clk 0:00:47]}  Rh6+ {[%clk 0:00:09]} 108. Kd7 {[%clk 0:00:47]}  Kb4 {[%clk 0:00:08]} 109. Rb1+ {[%clk 0:00:46]}  Kc5 {[%clk 0:00:08]} 110. Rc1+ {[%clk 0:00:46]}  Kd5 {[%clk 0:00:08]} 111. Rd1+ {[%clk 0:00:47]}  Ke5 {[%clk 0:00:09]} 112. Re1+ {[%clk 0:00:47]}  Kd5 {[%clk 0:00:10]} 113. Rd1+ {[%clk 0:00:48]}  Ke5 {[%clk 0:00:10]} 114. Re1+ {[%clk 0:00:48]}  Kd5 {[%clk 0:00:11]} 115. Rg1 {[%clk 0:00:48]}  Rh7+ {[%clk 0:00:11]} 116. Ke8 {[%clk 0:00:48]}  Kd6 {[%clk 0:00:11]} 117. Rg6+ {[%clk 0:00:48]}  Ke5 {[%clk 0:00:12]} 118. Ra6 {[%clk 0:00:48]}  Kd5 {[%clk 0:00:12]} 1/2-1/2


[Site "https://www.chess.com"]

[Event "Titled Tuesday Blitz April 26 Late 2022"]
[White "Chuemsakul, Sarocha"]
[Black "Kukula, Pawel"]
[WhiteFideId "6203710"]
[BlackFideId "1115081"]
[WhiteElo "1703"]
[BlackElo "2152"]
[Result "1/2-1/2"]
[Round "02"]
[TimeControl "180+1"]
[Date "2022.04.26"]
[WhiteClock "0:00:06"]
[BlackClock "0:00:16"]

1. d4 {[%clk 0:03:00]}  d5 {[%clk 0:02:56]} 2. c4 {[%clk 0:03:01]}  c6 {[%clk 0:02:56]} 3. e3 {[%clk 0:03:00]}  Nf6 {[%clk 0:02:55]} 4. Nc3 {[%clk 0:02:59]}  Bf5 {[%clk 0:02:54]} 5. Bd3 {[%clk 0:02:59]}  Bg6 {[%clk 0:02:48]} 6. Nf3 {[%clk 0:02:59]}  e6 {[%clk 0:02:49]} 7. O-O {[%clk 0:02:59]}  Nbd7 {[%clk 0:02:49]} 8. a3 {[%clk 0:02:59]}  Bd6 {[%clk 0:02:44]} 9. b4 {[%clk 0:02:59]}  Qe7 {[%clk 0:02:40]} 10. Bb2 {[%clk 0:02:49]}  dxc4 {[%clk 0:02:32]} 11. Bxc4 {[%clk 0:02:49]}  e5 {[%clk 0:02:32]} 12. Nh4 {[%clk 0:01:53]}  e4 {[%clk 0:02:24]} 13. f4 {[%clk 0:01:35]}  exf3 {[%clk 0:02:22]} 14. Qxf3 {[%clk 0:01:35]}  O-O {[%clk 0:02:03]} 15. Nxg6 {[%clk 0:01:33]}  hxg6 {[%clk 0:02:04]} 16. e4 {[%clk 0:01:33]}  Bc7 {[%clk 0:01:41]} 17. e5 {[%clk 0:01:32]}  Nh7 {[%clk 0:01:35]} 18. Ne4 {[%clk 0:01:31]}  Nb6 {[%clk 0:01:31]} 19. Bb3 {[%clk 0:01:28]}  Nd5 {[%clk 0:01:27]} 20. Rae1 {[%clk 0:01:28]}  Rad8 {[%clk 0:01:23]} 21. Nc5 {[%clk 0:01:28]}  Ng5 {[%clk 0:01:10]} 22. Qg4 {[%clk 0:01:21]}  Bb6 {[%clk 0:01:03]} 23. Kh1 {[%clk 0:00:59]}  Bxc5 {[%clk 0:01:03]} 24. dxc5 {[%clk 0:00:55]}  Ne6 {[%clk 0:01:03]} 25. Rd1 {[%clk 0:00:48]}  Qg5 {[%clk 0:00:58]} 26. Qxg5 {[%clk 0:00:43]}  Nxg5 {[%clk 0:00:58]} 27. Rfe1 {[%clk 0:00:43]}  Ne6 {[%clk 0:00:58]} 28. g3 {[%clk 0:00:42]}  Rd7 {[%clk 0:00:54]} 29. Kg2 {[%clk 0:00:43]}  Rfd8 {[%clk 0:00:54]} 30. Kf2 {[%clk 0:00:41]}  Ndc7 {[%clk 0:00:43]} 31. Rd6 {[%clk 0:00:41]}  Nb5 {[%clk 0:00:43]} 32. a4 {[%clk 0:00:37]}  Nxd6 {[%clk 0:00:42]} 33. exd6 {[%clk 0:00:38]}  Re8 {[%clk 0:00:35]} 34. a5 {[%clk 0:00:35]}  Rdd8 {[%clk 0:00:30]} 35. h4 {[%clk 0:00:21]}  a6 {[%clk 0:00:30]} 36. Bc4 {[%clk 0:00:20]}  Nf8 {[%clk 0:00:23]} 37. Rd1 {[%clk 0:00:10]}  Nd7 {[%clk 0:00:23]} 38. Bd4 {[%clk 0:00:10]}  Re4 {[%clk 0:00:22]} 39. Kf3 {[%clk 0:00:08]}  Rde8 {[%clk 0:00:22]} 40. Bb3 {[%clk 0:00:04]}  Kf8 {[%clk 0:00:20]} 41. Bc2 {[%clk 0:00:04]}  Re2 {[%clk 0:00:18]} 42. Bd3 {[%clk 0:00:04]}  Rh2 {[%clk 0:00:17]} 43. Be3 {[%clk 0:00:03]}  Ne5+ {[%clk 0:00:17]} 44. Kf4 {[%clk 0:00:03]}  Nxd3+ {[%clk 0:00:15]} 45. Rxd3 {[%clk 0:00:03]}  f6 {[%clk 0:00:13]} 46. Kf3 {[%clk 0:00:04]}  Rd8 {[%clk 0:00:13]} 47. Bf4 {[%clk 0:00:04]}  Rc2 {[%clk 0:00:13]} 48. Rd4 {[%clk 0:00:03]}  Kf7 {[%clk 0:00:14]} 49. Kg4 {[%clk 0:00:04]}  Rd7 {[%clk 0:00:14]} 50. Kh3 {[%clk 0:00:04]}  Re2 {[%clk 0:00:14]} 51. Kg4 {[%clk 0:00:04]}  Re6 {[%clk 0:00:15]} 52. Kf3 {[%clk 0:00:05]}  f5 {[%clk 0:00:15]} 53. Kf2 {[%clk 0:00:04]}  Re8 {[%clk 0:00:14]} 54. Kf3 {[%clk 0:00:05]}  Rdd8 {[%clk 0:00:14]} 55. Kf2 {[%clk 0:00:05]}  Re6 {[%clk 0:00:14]} 56. Kf3 {[%clk 0:00:05]}  Rd7 {[%clk 0:00:14]} 57. g4 {[%clk 0:00:06]}  fxg4+ {[%clk 0:00:14]} 58. Kxg4 {[%clk 0:00:07]}  Re2 {[%clk 0:00:14]} 59. Bg5 {[%clk 0:00:07]}  Re5 {[%clk 0:00:13]} 60. Kg3 {[%clk 0:00:07]}  Ke6 {[%clk 0:00:14]} 61. Rf4 {[%clk 0:00:06]}  Rf5 {[%clk 0:00:14]} 62. Re4+ {[%clk 0:00:06]}  Re5 {[%clk 0:00:15]} 63. Rd4 {[%clk 0:00:06]}  Kf5 {[%clk 0:00:15]} 64. Rf4+ {[%clk 0:00:06]}  Ke6 {[%clk 0:00:15]} 65. Rd4 {[%clk 0:00:06]}  Rd8 {[%clk 0:00:15]} 66. Rf4 {[%clk 0:00:06]}  Rd7 {[%clk 0:00:16]} 67. Rd4 {[%clk 0:00:06]} 1/2-1/2


[Site "https://www.chess.com"]